{"text_format":"1","workbook":"xlsx","n_sheets":1,"sheets":["Lliga"],"not_rendered":{"charts":0,"images":0,"macros":1,"external_links":0,"defined_names":1,"comments":0,"pivot_tables":0},"unopened":[],"bounds":{"document_bytes":16777216,"sheet_cells":100000,"rows_first":2000,"rows_last":500,"rows_between":2000,"halvings":0,"cell_chars":16384,"cell_head_chars":4096},"cells_cut":0,"cells_raw":0,"read":"whole","date_system":"1900"}

{"sheet":"Lliga","index":0,"n_rows":251,"n_cols":72,"rows_kept":251,"cut":false,"hidden":false,"merged":[[1,68,1,70],[42,3,42,5],[42,6,42,8],[42,9,42,11],[42,12,42,14],[42,15,42,17],[42,18,42,20],[42,21,42,23],[42,57,42,59],[42,24,42,26],[42,27,42,29],[42,30,42,32],[42,33,42,35],[42,36,42,38],[42,54,42,56],[42,39,42,41],[42,42,42,44],[42,45,42,47],[42,48,42,50],[42,51,42,53],[2,10,2,13]]}
[null,"RUMMIKUB 2022-23"]
[null,"Mes"]
[null,5,"Mes",{"$f":"SUM(D5:D20)","v":0},null,null,null,null,"Jugadors",null,"Premi segons posició"]
[null,null,null,"Premi","Punts","Partides",null,null,null,1,2,3,4,5,6]
[null,1,"Emiliano",{"$f":"+G$40","v":88},{"$f":"+G$41","v":13.899082568807339},{"$f":"+H$40","v":85},{"$f":"+G$26","v":80},{"$f":"IF(F5<B$3/2,-1,1)*800000+D5*1000-E5*10+F5/100","v":887861.85917431186},2,10,-10]
[null,2,"Ferran",{"$f":"+AH$40","v":0},{"$f":"+AH$41","v":14.9},{"$f":"+AI$40","v":4},{"$f":"+AH$26","v":40},{"$f":"IF(F6<B$3/2,-1,1)*800000+D6*1000-E6*10+F6/100","v":799851.04},3,10,0,-10]
[null,3,"Mariajo",{"$f":"+D$40","v":-8},{"$f":"+D$41","v":10.577981651376147},{"$f":"+E$40","v":85},{"$f":"+D$26","v":20},{"$f":"IF(F7<B$3/2,-1,1)*800000+D7*1000-E7*10+F7/100","v":791895.07018348621},4,10,4,-4,-10]
[null,4,"Nuri",{"$f":"+S$40","v":-10},{"$f":"+S$41","v":29.363636363636363},{"$f":"+T$40","v":4},{"$f":"+S$26","v":10},{"$f":"IF(F8<B$3/2,-1,1)*800000+D8*1000-E8*10+F8/100","v":789706.40363636368},5,10,5,0,-5,-10]
[null,5,"Álex",{"$f":"+M$40","v":4},{"$f":"+M$41","v":6},{"$f":"+N$40","v":1},{"$f":"+M$26","v":0},{"$f":"IF(F9<B$3/2,-1,1)*800000+D9*1000-E9*10+F9/100","v":-796059.99},6,10,6,2,-2,-6,-10]
[null,6,"Rosa",{"$f":"+Y$40","v":4},{"$f":"+Y$41","v":12.333333333333334},{"$f":"+Z$40","v":1},{"$f":"+Y$26","v":0},{"$f":"IF(F10<B$3/2,-1,1)*800000+D10*1000-E10*10+F10/100","v":-796123.32333333336}]
[null,7,"Jorge",{"$f":"+BC$40","v":0},{"$f":"+BC$41","v":10.5},{"$f":"+BD$40","v":1},{"$f":"+BC$26","v":0},{"$f":"IF(F11<B$3/2,-1,1)*800000+D11*1000-E11*10+F11/100","v":-800104.99},null,null,null,null,null,null,null,null,null,null,null,null,null,null,null,null,null,null," "]
[null,8,"Chesca",{"$f":"+AQ$40","v":0},{"$f":"+AQ$41","v":11.222222222222221},{"$f":"+AR$40","v":1},{"$f":"+AQ$26","v":0},{"$f":"IF(F12<B$3/2,-1,1)*800000+D12*1000-E12*10+F12/100","v":-800112.21222222224}]
[null,9,"Jordi V.",{"$f":"+AE$40","v":0},{"$f":"+AE$41","v":29.4},{"$f":"+AF$40","v":2},{"$f":"+AE$26","v":0},{"$f":"IF(F13<B$3/2,-1,1)*800000+D13*1000-E13*10+F13/100","v":-800293.98}]
[null,10,"Fely",{"$f":"+AN$40","v":-6},{"$f":"+AN$41","v":18.53846153846154},{"$f":"+AO$40","v":2},{"$f":"+AN$26","v":0},{"$f":"IF(F14<B$3/2,-1,1)*800000+D14*1000-E14*10+F14/100","v":-806185.36461538461}]
[null,11,"José",{"$f":"+AK$40","v":-8},{"$f":"+AK$41","v":15.615384615384615},{"$f":"+AL$40","v":2},{"$f":"+AK$26","v":0},{"$f":"IF(F15<B$3/2,-1,1)*800000+D15*1000-E15*10+F15/100","v":-808156.13384615385}]
[null,12,"Mª Carmen",{"$f":"+AZ$40","v":-10},{"$f":"+AZ$41","v":12.285714285714286},{"$f":"+BA$40","v":1},{"$f":"+AZ$26","v":0},{"$f":"IF(F16<B$3/2,-1,1)*800000+D16*1000-E16*10+F16/100","v":-810122.84714285715}]
[null,13,"Marcos",{"$f":"+J$40","v":-10},{"$f":"+J$41","v":16.333333333333332},{"$f":"+K$40","v":1},{"$f":"+J$26","v":0},{"$f":"IF(F17<B$3/2,-1,1)*800000+D17*1000-E17*10+F17/100","v":-810163.32333333336}]
[null,14,"Luisa",{"$f":"+AB$40","v":-10},{"$f":"+AB$41","v":20.333333333333332},{"$f":"+AC$40","v":1},{"$f":"+AB$26","v":0},{"$f":"IF(F18<B$3/2,-1,1)*800000+D18*1000-E18*10+F18/100","v":-810203.32333333336}]
[null,15,"Marta",{"$f":"+P$40","v":-14},{"$f":"+P$41","v":10.142857142857142},{"$f":"+Q$40","v":2},{"$f":"+P$26","v":0},{"$f":"IF(F19<B$3/2,-1,1)*800000+D19*1000-E19*10+F19/100","v":-814101.4085714285}]
[null,16,"Montse",{"$f":"+V$40","v":-20},{"$f":"+V$41","v":52},{"$f":"+W$40","v":2},{"$f":"+V$26","v":0},{"$f":"IF(F20<B$3/2,-1,1)*800000+D20*1000-E20*10+F20/100","v":-820519.98}]
[null,17,"Grau",{"$f":"+AW$40","v":-100000000},{"$f":"+AW$41","v":0},{"$f":"+AX$40","v":0},{"$f":"+AW$26","v":0},{"$f":"IF(F21<B$3/2,-1,1)*800000+D21*1000-E21*10+F21/100","v":-100000800000}]
[null,18,"Goretti",{"$f":"+AT$40","v":-100000000},{"$f":"+AT$41","v":0},{"$f":"+AU$40","v":0},{"$f":"+AT$26","v":0},-100000800000]
[null,19,"Marina",{"$f":"+BF$40","v":-100000000},{"$f":"+BF$41","v":0},{"$f":"+BG$40","v":0},{"$f":"+BF$26","v":0},-100000800000]
[]
[]
[null,null,"General",{"$f":"+D27*D28","v":20},{"$f":"+E27*E28","v":85},null,{"$f":"+G27*G28","v":80},{"$f":"+H27*H28","v":85},null,{"$f":"+J27*J28","v":0},{"$f":"+K27*K28","v":1},null,{"$f":"+M27*M28","v":0},{"$f":"+N27*N28","v":1},null,{"$f":"+P27*P28","v":0},{"$f":"+Q27*Q28","v":2},null,{"$f":"+S27*S28","v":10},{"$f":"+T27*T28","v":4},null,{"$f":"+V27*V28","v":0},{"$f":"+W27*W28","v":2},null,{"$f":"+Y27*Y28","v":0},{"$f":"+Z27*Z28","v":1},null,{"$f":"+AB27*AB28","v":0},{"$f":"+AC27*AC28","v":1},null,{"$f":"+AE27*AE28","v":0},{"$f":"+AF27*AF28","v":2},null,{"$f":"+AH27*AH28","v":40},{"$f":"+AI27*AI28","v":4},null,{"$f":"+AK27*AK28","v":0},{"$f":"+AL27*AL28","v":2},null,{"$f":"+AN27*AN28","v":0},{"$f":"+AO27*AO28","v":2},null,{"$f":"+AQ27*AQ28","v":0},{"$f":"+AR27*AR28","v":1},null,{"$f":"+AT27*AT28","v":0},{"$f":"+AU27*AU28","v":0},null,{"$f":"+AW27*AW28","v":0},{"$f":"+AX27*AX28","v":0},null,{"$f":"+AZ27*AZ28","v":0},{"$f":"+BA27*BA28","v":1},null,{"$f":"+BC27*BC28","v":0},{"$f":"+BD27*BD28","v":1},null,{"$f":"+BF27*BF28","v":0},{"$f":"+BG27*BG28","v":0}]
[null,null,null,{"$f":"IF($C39>3,1,0)","v":1},{"$f":"IF($C39>3,1,0)","v":1},null,{"$f":"IF($C39>3,1,0)","v":1},{"$f":"IF($C39>3,1,0)","v":1},null,{"$f":"IF($C39>3,1,0)","v":1},{"$f":"IF($C39>3,1,0)","v":1},null,{"$f":"IF($C39>3,1,0)","v":1},{"$f":"IF($C39>3,1,0)","v":1},null,{"$f":"IF($C39>3,1,0)","v":1},{"$f":"IF($C39>3,1,0)","v":1},null,{"$f":"IF($C39>3,1,0)","v":1},{"$f":"IF($C39>3,1,0)","v":1},null,{"$f":"IF($C39>3,1,0)","v":1},{"$f":"IF($C39>3,1,0)","v":1},null,{"$f":"IF($C39>3,1,0)","v":1},{"$f":"IF($C39>3,1,0)","v":1},null,{"$f":"IF($C39>3,1,0)","v":1},{"$f":"IF($C39>3,1,0)","v":1},null,{"$f":"IF($C39>3,1,0)","v":1},{"$f":"IF($C39>3,1,0)","v":1},null,{"$f":"IF($C39>3,1,0)","v":1},{"$f":"IF($C39>3,1,0)","v":1},null,{"$f":"IF($C39>3,1,0)","v":1},{"$f":"IF($C39>3,1,0)","v":1},null,{"$f":"IF($C39>3,1,0)","v":1},{"$f":"IF($C39>3,1,0)","v":1},null,{"$f":"IF($C39>3,1,0)","v":1},{"$f":"IF($C39>3,1,0)","v":1},null,{"$f":"IF($C39>3,1,0)","v":1},{"$f":"IF($C39>3,1,0)","v":1},null,{"$f":"IF($C39>3,1,0)","v":1},{"$f":"IF($C39>3,1,0)","v":1},null,{"$f":"IF($C39>3,1,0)","v":1},{"$f":"IF($C39>3,1,0)","v":1},null,{"$f":"IF($C39>3,1,0)","v":1},{"$f":"IF($C39>3,1,0)","v":1},null,{"$f":"IF($C39>3,1,0)","v":1},{"$f":"IF($C39>3,1,0)","v":1}]
[null,null,null,{"$f":"MAX(D29:D33)","v":20},{"$f":"+E40","v":85},null,{"$f":"MAX(G29:G33)","v":80},{"$f":"+H40","v":85},null,{"$f":"MAX(J29:J33)","v":0},{"$f":"+K40","v":1},null,{"$f":"MAX(M29:M33)","v":0},{"$f":"+N40","v":1},null,{"$f":"MAX(P29:P33)","v":0},{"$f":"+Q40","v":2},null,{"$f":"MAX(S29:S33)","v":10},{"$f":"+T40","v":4},null,{"$f":"MAX(V29:V33)","v":0},{"$f":"+W40","v":2},null,{"$f":"MAX(Y29:Y33)","v":0},{"$f":"+Z40","v":1},null,{"$f":"MAX(AB29:AB33)","v":0},{"$f":"+AC40","v":1},null,{"$f":"MAX(AE29:AE33)","v":0},{"$f":"+AF40","v":2},null,{"$f":"MAX(AH29:AH33)","v":40},{"$f":"+AI40","v":4},null,{"$f":"MAX(AK29:AK33)","v":0},{"$f":"+AL40","v":2},null,{"$f":"MAX(AN29:AN33)","v":0},{"$f":"+AO40","v":2},null,{"$f":"MAX(AQ29:AQ33)","v":0},{"$f":"+AR40","v":1},null,{"$f":"MAX(AT29:AT33)","v":0},{"$f":"+AU40","v":0},null,{"$f":"MAX(AW29:AW33)","v":0},{"$f":"+AX40","v":0},null,{"$f":"MAX(AZ29:AZ33)","v":0},{"$f":"+BA40","v":1},null,{"$f":"MAX(BC29:BC33)","v":0},{"$f":"+BD40","v":1},null,{"$f":"MAX(BF29:BF33)","v":0},{"$f":"+BG40","v":0}]
[null,null,null,{"$f":"IF(D$34=5,5,0)","v":0},null,null,{"$f":"IF(G$34=5,5,0)","v":0},null,null,{"$f":"IF(J$34=5,5,0)","v":0},null,null,{"$f":"IF(M$34=5,5,0)","v":0},null,null,{"$f":"IF(P$34=5,5,0)","v":0},null,null,{"$f":"IF(S$34=5,5,0)","v":0},null,null,{"$f":"IF(V$34=5,5,0)","v":0},null,null,{"$f":"IF(Y$34=5,5,0)","v":0},null,null,{"$f":"IF(AB$34=5,5,0)","v":0},null,null,{"$f":"IF(AE$34=5,5,0)","v":0},null,null,{"$f":"IF(AH$34=5,5,0)","v":0},null,null,{"$f":"IF(AK$34=5,5,0)","v":0},null,null,{"$f":"IF(AN$34=5,5,0)","v":0},null,null,{"$f":"IF(AQ$34=5,5,0)","v":0},null,null,{"$f":"IF(AT$34=5,5,0)","v":0},null,null,{"$f":"IF(AW$34=5,5,0)","v":0},null,null,{"$f":"IF(AZ$34=5,5,0)","v":0},null,null,{"$f":"IF(BC$34=5,5,0)","v":0},null,null,{"$f":"IF(BF$34=5,5,0)","v":0}]
[null,null,null,{"$f":"IF(D$34=4,10,0)","v":0},null,null,{"$f":"IF(G$34=4,10,0)","v":0},null,null,{"$f":"IF(J$34=4,10,0)","v":0},null,null,{"$f":"IF(M$34=4,10,0)","v":0},null,null,{"$f":"IF(P$34=4,10,0)","v":0},null,null,{"$f":"IF(S$34=4,10,0)","v":10},null,null,{"$f":"IF(V$34=4,10,0)","v":0},null,null,{"$f":"IF(Y$34=4,10,0)","v":0},null,null,{"$f":"IF(AB$34=4,10,0)","v":0},null,null,{"$f":"IF(AE$34=4,10,0)","v":0},null,null,{"$f":"IF(AH$34=4,10,0)","v":0},null,null,{"$f":"IF(AK$34=4,10,0)","v":0},null,null,{"$f":"IF(AN$34=4,10,0)","v":0},null,null,{"$f":"IF(AQ$34=4,10,0)","v":0},null,null,{"$f":"IF(AT$34=4,10,0)","v":0},null,null,{"$f":"IF(AW$34=4,10,0)","v":0},null,null,{"$f":"IF(AZ$34=4,10,0)","v":0},null,null,{"$f":"IF(BC$34=4,10,0)","v":0},null,null,{"$f":"IF(BF$34=4,10,0)","v":0}]
[null,null,null,{"$f":"IF(D$34=3,20,0)","v":20},null,null,{"$f":"IF(G$34=3,20,0)","v":0},null,null,{"$f":"IF(J$34=3,20,0)","v":0},null,null,{"$f":"IF(M$34=3,20,0)","v":0},null,null,{"$f":"IF(P$34=3,20,0)","v":0},null,null,{"$f":"IF(S$34=3,20,0)","v":0},null,null,{"$f":"IF(V$34=3,20,0)","v":0},null,null,{"$f":"IF(Y$34=3,20,0)","v":0},null,null,{"$f":"IF(AB$34=3,20,0)","v":0},null,null,{"$f":"IF(AE$34=3,20,0)","v":0},null,null,{"$f":"IF(AH$34=3,20,0)","v":0},null,null,{"$f":"IF(AK$34=3,20,0)","v":0},null,null,{"$f":"IF(AN$34=3,20,0)","v":0},null,null,{"$f":"IF(AQ$34=3,20,0)","v":0},null,null,{"$f":"IF(AT$34=3,20,0)","v":0},null,null,{"$f":"IF(AW$34=3,20,0)","v":0},null,null,{"$f":"IF(AZ$34=3,20,0)","v":0},null,null,{"$f":"IF(BC$34=3,20,0)","v":0},null,null,{"$f":"IF(BF$34=3,20,0)","v":0}]
[null,null,null,{"$f":"IF(D$34=2,40,0)","v":0},null,null,{"$f":"IF(G$34=2,40,0)","v":0},null,null,{"$f":"IF(J$34=2,40,0)","v":0},null,null,{"$f":"IF(M$34=2,40,0)","v":0},null,null,{"$f":"IF(P$34=2,40,0)","v":0},null,null,{"$f":"IF(S$34=2,40,0)","v":0},null,null,{"$f":"IF(V$34=2,40,0)","v":0},null,null,{"$f":"IF(Y$34=2,40,0)","v":0},null,null,{"$f":"IF(AB$34=2,40,0)","v":0},null,null,{"$f":"IF(AE$34=2,40,0)","v":0},null,null,{"$f":"IF(AH$34=2,40,0)","v":40},null,null,{"$f":"IF(AK$34=2,40,0)","v":0},null,null,{"$f":"IF(AN$34=2,40,0)","v":0},null,null,{"$f":"IF(AQ$34=2,40,0)","v":0},null,null,{"$f":"IF(AT$34=2,40,0)","v":0},null,null,{"$f":"IF(AW$34=2,40,0)","v":0},null,null,{"$f":"IF(AZ$34=2,40,0)","v":0},null,null,{"$f":"IF(BC$34=2,40,0)","v":0},null,null,{"$f":"IF(BF$34=2,40,0)","v":0}]
[null,null,null,{"$f":"IF(D$34=1,80,0)","v":0},null,null,{"$f":"IF(G$34=1,80,0)","v":80},null,null,{"$f":"IF(J$34=1,80,0)","v":0},null,null,{"$f":"IF(M$34=1,80,0)","v":0},null,null,{"$f":"IF(P$34=1,80,0)","v":0},null,null,{"$f":"IF(S$34=1,80,0)","v":0},null,null,{"$f":"IF(V$34=1,80,0)","v":0},null,null,{"$f":"IF(Y$34=1,80,0)","v":0},null,null,{"$f":"IF(AB$34=1,80,0)","v":0},null,null,{"$f":"IF(AE$34=1,80,0)","v":0},null,null,{"$f":"IF(AH$34=1,80,0)","v":0},null,null,{"$f":"IF(AK$34=1,80,0)","v":0},null,null,{"$f":"IF(AN$34=1,80,0)","v":0},null,null,{"$f":"IF(AQ$34=1,80,0)","v":0},null,null,{"$f":"IF(AT$34=1,80,0)","v":0},null,null,{"$f":"IF(AW$34=1,80,0)","v":0},null,null,{"$f":"IF(AZ$34=1,80,0)","v":0},null,null,{"$f":"IF(BC$34=1,80,0)","v":0},null,null,{"$f":"IF(BF$34=1,80,0)","v":0}]
[null,null,null,{"$f":"RANK(D35,$D35:$BG35)*D39","v":3},null,null,{"$f":"RANK(G35,$D35:$BG35)*G39","v":1},null,null,{"$f":"RANK(J35,$D35:$BG35)*J39","v":0},null,null,{"$f":"RANK(M35,$D35:$BG35)*M39","v":0},null,null,{"$f":"RANK(P35,$D35:$BG35)*P39","v":0},null,null,{"$f":"RANK(S35,$D35:$BG35)*S39","v":4},null,null,{"$f":"RANK(V35,$D35:$BG35)*V39","v":0},null,null,{"$f":"RANK(Y35,$D35:$BG35)*Y39","v":0},null,null,{"$f":"RANK(AB35,$D35:$BG35)*AB39","v":0},null,null,{"$f":"RANK(AE35,$D35:$BG35)*AE39","v":0},null,null,{"$f":"RANK(AH35,$D35:$BG35)*AH39","v":2},null,null,{"$f":"RANK(AK35,$D35:$BG35)*AK39","v":0},null,null,{"$f":"RANK(AN35,$D35:$BG35)*AN39","v":0},null,null,{"$f":"RANK(AQ35,$D35:$BG35)*AQ39","v":0},null,null,{"$f":"RANK(AT35,$D35:$BG35)*AT39","v":0},null,null,{"$f":"RANK(AW35,$D35:$BG35)*AW39","v":0},null,null,{"$f":"RANK(AZ35,$D35:$BG35)*AZ39","v":0},null,null,{"$f":"RANK(BC35,$D35:$BG35)*BC39","v":0},null,null,{"$f":"RANK(BF35,$D35:$BG35)*BF39","v":0}]
[null,null,null,{"$f":"SUM(D36:D38)","v":-798865.20183486235},null,null,{"$f":"SUM(G36:G38)","v":8801562.9082568809},null,null,{"$f":"SUM(J36:J38)","v":-999998365.66666663},null,null,{"$f":"SUM(M36:M38)","v":-999999399},null,null,{"$f":"SUM(P36:P38)","v":-999998983.71428573},null,null,{"$f":"SUM(S36:S38)","v":-997069.63636363635},null,null,{"$f":"SUM(V36:V38)","v":-999994798},null,null,{"$f":"SUM(Y36:Y38)","v":-999998765.66666663},null,null,{"$f":"SUM(AB36:AB38)","v":-999997965.66666663},null,null,{"$f":"SUM(AE36:AE38)","v":-999997058},null,null,{"$f":"SUM(AH36:AH38)","v":1494},null,null,{"$f":"SUM(AK36:AK38)","v":-999999966.76923072},null,null,{"$f":"SUM(AN36:AN38)","v":-999998144.15384614},null,null,{"$f":"SUM(AQ36:AQ38)","v":-999999976.55555558},null,null,{"$f":"SUM(AT36:AT38)","v":-1000000000},null,null,{"$f":"SUM(AW36:AW38)","v":-1000000000},null,null,{"$f":"SUM(AZ36:AZ38)","v":-999998770.42857146},null,null,{"$f":"SUM(BC36:BC38)","v":-9998949},null,null,{"$f":"SUM(BF36:BF38)","v":-10000000}]
[null,null,null,{"$f":"+E40","v":85},null,null,{"$f":"+H40","v":85},null,null,{"$f":"+K40","v":1},null,null,{"$f":"+N40","v":1},null,null,{"$f":"+Q40","v":2},null,null,{"$f":"+T40","v":4},null,null,{"$f":"+W40","v":2},null,null,{"$f":"+Z40","v":1},null,null,{"$f":"+AC40","v":1},null,null,{"$f":"+AF40","v":2},null,null,{"$f":"+AI40","v":4},null,null,{"$f":"+AL40","v":2},null,null,{"$f":"+AO40","v":2},null,null,{"$f":"+AR40","v":1},null,null,{"$f":"+AU40","v":0},null,null,{"$f":"+AX40","v":0},null,null,{"$f":"+BA40","v":1},null,null,{"$f":"+BD40","v":1},null,null,{"$f":"+BG40","v":0}]
[null,null,null,{"$f":"+D41*100","v":1057.7981651376147},null,null,{"$f":"+G41*100","v":1389.9082568807339},null,null,{"$f":"+J41*100","v":1633.3333333333333},null,null,{"$f":"+M41*100","v":600},null,null,{"$f":"+P41*100","v":1014.2857142857142},null,null,{"$f":"+S41*100","v":2936.3636363636365},null,null,{"$f":"+V41*100","v":5200},null,null,{"$f":"+Y41*100","v":1233.3333333333335},null,null,{"$f":"+AB41*100","v":2033.3333333333333},null,null,{"$f":"+AE41*100","v":2940},null,null,{"$f":"+AH41*100","v":1490},null,null,{"$f":"+AK41*2","v":31.23076923076923},null,null,{"$f":"+AN41*100","v":1853.846153846154},null,null,{"$f":"+AQ41*2","v":22.444444444444443},null,null,{"$f":"+AT41*100","v":0},null,null,{"$f":"+AW41*100","v":0},null,null,{"$f":"+AZ41*100","v":1228.5714285714287},null,null,{"$f":"+BC41*100","v":1050},null,null,{"$f":"+BF41*100","v":0}]
[null,null,null,{"$f":"IF(E40-$B3/2<0,-1000000000,D40*D39*100000+D40)","v":-800008},null,null,{"$f":"IF(H40-$B3/2<0,-1000000000,G40*G39*100000+G40)","v":8800088},null,null,{"$f":"IF(K40-$B3/2<0,-1000000000,J40*J39*100000+J40)","v":-1000000000},null,null,{"$f":"IF(N40-$B3/2<0,-1000000000,M40*M39*100000+M40)","v":-1000000000},null,null,{"$f":"IF(Q40-$B3/2<0,-1000000000,P40*P39*100000+P40)","v":-1000000000},null,null,{"$f":"IF(T40-$B3/2<0,-1000000000,S40*S39*100000+S40)","v":-1000010},null,null,{"$f":"IF(W40-$B3/2<0,-1000000000,V40*V39*100000+V40)","v":-1000000000},null,null,{"$f":"IF(Z40-$B3/2<0,-1000000000,Y40*Y39*100000+Y40)","v":-1000000000},null,null,{"$f":"IF(AC40-$B3/2<0,-1000000000,AB40*AB39*100000+AB40)","v":-1000000000},null,null,{"$f":"IF(AF40-$B3/2<0,-1000000000,AE40*AE39*100000+AE40)","v":-1000000000},null,null,{"$f":"IF(AI40-$B3/2<0,-1000000000,AH40*AH39*100000+AH40)","v":0},null,null,{"$f":"IF(AL40-$B3/2<0,-1000000000,AK40*AK39*100000+AK40)","v":-1000000000},null,null,{"$f":"IF(AO40-$B3/2<0,-1000000000,AN40*AN39*100000+AN40)","v":-1000000000},null,null,{"$f":"IF(AR40-$B3/2<0,-1000000000,AQ40*AQ39*100000+AQ40)","v":-1000000000},null,null,{"$f":"IF(AU40-$B3/2<0,-1000000000,AT40*AT39*100000+AT40)","v":-1000000000},null,null,{"$f":"IF(AX40-$B3/2<0,-1000000000,AW40*AW39*100000+AW40)","v":-1000000000},null,null,{"$f":"IF(BA40-$B3/2<0,-1000000000,AZ40*AZ39*100000+AZ40)","v":-1000000000},null,null,{"$f":"IF(BD40-$B3/2<0,-10000000,BC40*BC39*100000+BC40)","v":-10000000},null,null,{"$f":"IF(BG40-$B3/2<0,-10000000,BF40*BF39*100000+BF40)","v":-10000000}]
[null,"Classificats",{"$f":"SUM(D39:BF39)","v":4},{"$f":"IF(E40>=$B3/2,1,0)","v":1},null,null,{"$f":"IF(H40>=$B3/2,1,0)","v":1},null,null,{"$f":"IF(K40>=$B3/2,1,0)","v":0},null,null,{"$f":"IF(N40>=$B3/2,1,0)","v":0},null,null,{"$f":"IF(Q40>=$B3/2,1,0)","v":0},null,null,{"$f":"IF(T40>=$B3/2,1,0)","v":1},null,null,{"$f":"IF(W40>=$B3/2,1,0)","v":0},null,null,{"$f":"IF(Z40>=$B3/2,1,0)","v":0},null,null,{"$f":"IF(AC40>=$B3/2,1,0)","v":0},null,null,{"$f":"IF(AF40>=$B3/2,1,0)","v":0},null,null,{"$f":"IF(AI40>=$B3/2,1,0)","v":1},null,null,{"$f":"IF(AL40>=$B3/2,1,0)","v":0},null,null,{"$f":"IF(AO40>=$B3/2,1,0)","v":0},null,null,{"$f":"IF(AR40>=$B3/2,1,0)","v":0},null,null,{"$f":"IF(AU40>=$B3/2,1,0)","v":0},null,null,{"$f":"IF(AX40>=$B3/2,1,0)","v":0},null,null,{"$f":"IF(BA40>=$B3/2,1,0)","v":0},null,null,{"$f":"IF(BD40>=$B3/2,1,0)","v":0},null,null,{"$f":"IF(BG40>=$B3/2,1,0)","v":0},null,null,{"$f":"MAX(BJ42:BJ278)","v":0}]
[null,null,null,{"$f":"IF(SUM(D45:D417)<-1000,-100000000,SUM(D45:D417))","v":-8},{"$f":"COUNT(E45:E417)","v":85},null,{"$f":"IF(SUM(G45:G417)<-1000,-100000000,SUM(G45:G417))","v":88},{"$f":"COUNT(H45:H417)","v":85},null,{"$f":"IF(SUM(J45:J417)<-1000,-100000000,SUM(J45:J417))","v":-10},{"$f":"COUNT(K45:K417)","v":1},null,{"$f":"IF(SUM(M45:M417)<-1000,-100000000,SUM(M45:M417))","v":4},{"$f":"COUNT(N45:N417)","v":1},null,{"$f":"IF(SUM(P45:P417)<-1000,-100000000,SUM(P45:P417))","v":-14},{"$f":"COUNT(Q45:Q417)","v":2},null,{"$f":"IF(SUM(S45:S417)<-1000,-100000000,SUM(S45:S417))","v":-10},{"$f":"COUNT(T45:T417)","v":4},null,{"$f":"IF(SUM(V45:V417)<-1000,-100000000,SUM(V45:V417))","v":-20},{"$f":"COUNT(W45:W417)","v":2},null,{"$f":"IF(SUM(Y45:Y417)<-1000,-100000000,SUM(Y45:Y417))","v":4},{"$f":"COUNT(Z45:Z417)","v":1},null,{"$f":"IF(SUM(AB45:AB417)<-1000,-100000000,SUM(AB45:AB417))","v":-10},{"$f":"COUNT(AC45:AC417)","v":1},null,{"$f":"IF(SUM(AE45:AE417)<-1000,-100000000,SUM(AE45:AE417))","v":0},{"$f":"COUNT(AF45:AF417)","v":2},null,{"$f":"IF(SUM(AH45:AH417)<-1000,-100000000,SUM(AH45:AH417))","v":0},{"$f":"COUNT(AI45:AI417)","v":4},null,{"$f":"IF(SUM(AK45:AK417)<-1000,-100000000,SUM(AK45:AK417))","v":-8},{"$f":"COUNT(AL45:AL417)","v":2},null,{"$f":"IF(SUM(AN45:AN417)<-1000,-100000000,SUM(AN45:AN417))","v":-6},{"$f":"COUNT(AO45:AO417)","v":2},null,{"$f":"IF(SUM(AQ45:AQ417)<-1000,-100000000,SUM(AQ45:AQ417))","v":0},{"$f":"COUNT(AR45:AR417)","v":1},null,{"$f":"IF(SUM(AT45:AT417)<-1000,-100000000,SUM(AT45:AT417))","v":-100000000},{"$f":"COUNT(AU45:AU417)","v":0},null,{"$f":"IF(SUM(AW45:AW417)<-1000,-100000000,SUM(AW45:AW417))","v":-100000000},{"$f":"COUNT(AX45:AX417)","v":0},null,{"$f":"IF(SUM(AZ45:AZ417)<-1000,-100000000,SUM(AZ45:AZ417))","v":-10},{"$f":"COUNT(BA45:BA417)","v":1},null,{"$f":"IF(SUM(BC45:BC417)<-1000,-100000000,SUM(BC45:BC417))","v":0},{"$f":"COUNT(BD45:BD417)","v":1},null,{"$f":"IF(SUM(BF45:BF417)<-1000,-100000000,SUM(BF45:BF417))","v":-100000000},{"$f":"COUNT(BG45:BG417)","v":0},null,null,"A"]
[null,null,null,{"$f":"+E41/F41","v":10.577981651376147},{"$f":"SUM(E45:E417)","v":2306},{"$f":"SUM(F45:F417)","v":218},{"$f":"+H41/I41","v":13.899082568807339},{"$f":"SUM(H45:H417)","v":3030},{"$f":"SUM(I45:I417)","v":218},{"$f":"+K41/L41","v":16.333333333333332},{"$f":"SUM(K45:K417)","v":49},{"$f":"SUM(L45:L417)","v":3},{"$f":"+N41/O41","v":6},{"$f":"SUM(N45:N417)","v":12},{"$f":"SUM(O45:O417)","v":2},{"$f":"+Q41/R41","v":10.142857142857142},{"$f":"SUM(Q45:Q417)","v":71},{"$f":"SUM(R45:R417)","v":7},{"$f":"+T41/U41","v":29.363636363636363},{"$f":"SUM(T45:T417)","v":323},{"$f":"SUM(U45:U417)","v":11},{"$f":"+W41/X41","v":52},{"$f":"SUM(W45:W417)","v":260},{"$f":"SUM(X45:X417)","v":5},{"$f":"+Z41/AA41","v":12.333333333333334},{"$f":"SUM(Z45:Z417)","v":37},{"$f":"SUM(AA45:AA417)","v":3},{"$f":"+AC41/AD41","v":20.333333333333332},{"$f":"SUM(AC45:AC417)","v":61},{"$f":"SUM(AD45:AD417)","v":3},{"$f":"+AF41/AG41","v":29.4},{"$f":"SUM(AF45:AF417)","v":147},{"$f":"SUM(AG45:AG417)","v":5},{"$f":"+AI41/AJ41","v":14.9},{"$f":"SUM(AI45:AI417)","v":149},{"$f":"SUM(AJ45:AJ417)","v":10},{"$f":"+AL41/AM41","v":15.615384615384615},{"$f":"SUM(AL45:AL417)","v":203},{"$f":"SUM(AM45:AM417)","v":13},{"$f":"+AO41/AP41","v":18.53846153846154},{"$f":"SUM(AO45:AO417)","v":241},{"$f":"SUM(AP45:AP417)","v":13},{"$f":"+AR41/AS41","v":11.222222222222221},{"$f":"SUM(AR45:AR417)","v":101},{"$f":"SUM(AS45:AS417)","v":9},{"$f":"+AU41/AV41","v":0},{"$f":"SUM(AU45:AU417)","v":0},{"$f":"SUM(AV45:AV417)","v":-1},{"$f":"+AX41/AY41","v":0},{"$f":"SUM(AX45:AX417)","v":0},{"$f":"SUM(AY45:AY417)","v":-1},{"$f":"+BA41/BB41","v":12.285714285714286},{"$f":"SUM(BA45:BA417)","v":86},{"$f":"SUM(BB45:BB417)","v":7},{"$f":"+BD41/BE41","v":10.5},{"$f":"SUM(BD45:BD417)","v":21},{"$f":"SUM(BE45:BE417)","v":2},{"$f":"+BG41/BH41","v":0},{"$f":"SUM(BG45:BG417)","v":0},{"$f":"SUM(BH45:BH417)","v":-1},null,"B"]
[null,null,null,null,null,null,null,null,null,{"$f":"COUNTIF(J45:J64,10)","v":0},null,null,null,null,null,null,null,null,{"$f":"COUNTIF(S45:S64,10)","v":0},null,null,{"$f":"COUNTIF(V45:V64,10)","v":0},null,null,{"$f":"COUNTIF(Y45:Y64,10)","v":0},null,null,null,null,null,null,null,null,null,null,null,null,null,null,{"$f":"COUNTIF(AN45:AN64,10)","v":0},null,null,null,null,null,{"$f":"COUNTIF(AT45:AT64,10)","v":0},null,null,{"$f":"COUNTIF(AW45:AW64,10)","v":0},null,null,{"$f":"COUNTIF(AZ45:AZ64,10)","v":0},null,null,null,null,null,null,null,null,{"$f":"MAX(BJ45:BJ281)","v":0}]
[null,null,null,"Mariajo",null,null,"Emiliano",null,null,"Marcos",null,null,"Álex",null,null,"Marta",null,null,"Nuri",null,null,"Montse",null,null,"Rosa",null,null,"Luisa",null,null,"Jordi V.",null,null,"Ferran",null,null,"José",null,null,"Fely",null,null,"Chesca",null,null,"Goretti",null,null,"Grau",null,null,"Mª Carmen",null,null,"Tere",null,null,"Marina",null,null,{"$f":"COUNT(BI45:BI432)","v":85},"A","B","C"]
[null,null,"Comentaris","Premi","Punts","Mans","Premi","Punts","Mans","Premi","Punts","Mans","Premi","Punts","Mans","Premi","Punts","Mans","Premi","Punts","Mans","Premi","Punts","Mans","Premi","Punts","Mans","Premi","Punts","Mans","Premi","Punts",null,"Premi","Punts",null,"Premi","Punts",null,"Premi","Punts",null,"Premi","Punts",null,"Premi","Punts",null,"Premi","Punts",null,"Premi","Punts",null,"Premi","Punts",null,"Premi","Punts",null,"Data"]
[null,1,null,-10,20,1,10,0,1,null,null,null,null,null,null,null,null,null,null,null,null,null,null,null,null,null,null,null,null,null,null,null,null,null,null,null,null,null,null,null,null,null,null,null,null,-10000,null,-1,-10000,null,-1,null,null,null,null,null,null,-10000,null,-1,"2022-12-19",{"$f":"+D45+G45+J45+M45+P45+S45+V45+Y45+AB45+AE45+AH45+AK45+AN45+AQ45+AT45+AW45+AZ45+BC45+BF45","v":-30000},null,null,null,null,null,null,null,null,null,{"$f":"+S45+P45+M45+J45+G45+D45","v":0}]
[null,2,null,-10,1,1,10,0,1,null,null,null,null,null,null,null,null,null,null,null,null,null,null,null,null,null,null,null,null,null,null,null,null,null,null,null,null,null,null,null,null,null,null,null,null,null,null,null,null,null,null,null,null,null,null,null,null,null,null,null,"2022-12-19",{"$f":"+D46+G46+J46+M46+P46+S46+V46+Y46+AB46+AE46+AH46+AK46+AN46+AQ46+AT46+AW46+AZ46+BC46+BF46","v":0},null,null,null,null,null,null,null,null,null,{"$f":"+S46+P46+M46+J46+G46+D46","v":0}]
[null,3,null,10,0,1,-10,30,1,null,null,null,null,null,null,null,null,null,null,null,null,null,null,null,null,null,null,null,null,null,null,null,null,null,null,null,null,null,null,null,null,null,null,null,null,null,null,null,null,null,null,null,null,null,null,null,null,null,null,null,"2022-12-19",0,null,null,null,null,null,null,null,null,null,0]
[null,4,null,10,0,1,-10,2,1,null,null,null,null,null,null,null,null,null,null,null,null,null,null,null,null,null,null,null,null,null,null,null,null,null,null,null,null,null,null,null,null,null,null,null,null,null,null,null,null,null,null,null,null,null,null,null,null,null,null,null,"2022-12-19",0,null,null,null,null,null,null,null,null,null,0]
[null,5,null,10,3,2,-10,74,2,null,null,null,4,12,2,-4,50,2,null,null,null,null,null,null,null,null,null,null,null,null,null,null,null,null,null,null,null,null,null,null,null,null,null,null,null,null,null,null,null,null,null,null,null,null,null,null,null,null,null,null,"2022-12-24",0,null,null,null,null,null,null,null,null,null,0]
[null,{"$f":"+B49+1","v":6},null,-10,6,1,10,0,1,null,null,null,null,null,null,null,null,null,null,null,null,null,null,null,null,null,null,null,null,null,null,null,null,null,null,null,null,null,null,null,null,null,null,null,null,null,null,null,null,null,null,null,null,null,null,null,null,null,null,null,"2022-12-24",{"$f":"+D50+G50+J50+M50+P50+S50+V50+Y50+AB50+AE50+AH50+AK50+AN50+AQ50+AT50+AW50+AZ50+BC50+BF50","v":0}]
[null,7,null,10,0,1,-10,76,1,null,null,null,null,null,null,null,null,null,null,null,null,null,null,null,null,null,null,null,null,null,null,null,null,null,null,null,null,null,null,null,null,null,null,null,null,null,null,null,null,null,null,null,null,null,null,null,null,null,null,null,"2022-12-24",0]
[null,8,null,-10,39,1,10,0,1,null,null,null,null,null,null,null,null,null,null,null,null,null,null,null,null,null,null,null,null,null,null,null,null,null,null,null,null,null,null,null,null,null,null,null,null,null,null,null,null,null,null,null,null,null,null,null,null,null,null,null,"2022-12-24",0]
[null,9,null,-10,3,1,10,0,1,null,null,null,null,null,null,null,null,null,null,null,null,null,null,null,null,null,null,null,null,null,null,null,null,null,null,null,null,null,null,null,null,null,null,null,null,null,null,null,null,null,null,null,null,null,null,null,null,null,null,null,"2022-12-25",0]
[null,10,null,-10,14,1,10,0,1,null,null,null,null,null,null,null,null,null,null,null,null,null,null,null,null,null,null,null,null,null,null,null,null,null,null,null,null,null,null,null,null,null,null,null,null,null,null,null,null,null,null,null,null,null,null,null,null,null,null,null,"2022-12-25",0]
[null,11,null,10,3,3,0,34,3,-10,49,3,null,null,null,null,null,null,null,null,null,null,null,null,null,null,null,null,null,null,null,null,null,null,null,null,null,null,null,null,null,null,null,null,null,null,null,null,null,null,null,null,null,null,null,null,null,null,null,null,"2022-12-25",0]
[null,12,null,10,21,5,0,58,5,null,null,null,null,null,null,-10,21,5,null,null,null,null,null,null,null,null,null,null,null,null,null,null,null,null,null,null,null,null,null,null,null,null,null,null,null,null,null,null,null,null,null,null,null,null,null,null,null,null,null,null,"2022-12-28",0]
[null,13,null,10,12,2,-10,15,2,null,null,null,null,null,null,null,null,null,null,null,null,null,null,null,null,null,null,null,null,null,null,null,null,null,null,null,null,null,null,null,null,null,null,null,null,null,null,null,null,null,null,null,null,null,null,null,null,null,null,null,"2023-01-01",0]
[null,14,null,10,4,2,-10,24,2,null,null,null,null,null,null,null,null,null,null,null,null,null,null,null,null,null,null,null,null,null,null,null,null,null,null,null,null,null,null,null,null,null,null,null,null,null,null,null,null,null,null,null,null,null,null,null,null,null,null,null,"2023-01-01",{"$f":"+D58+G58+J58+M58+P58+S58+V58+Y58+AB58+AE58+AH58+AK58+AN58+AQ58+AT58+AW58+AZ58+BC58+BF58","v":0}]
[null,15,null,-10,26,2,10,0,2,null,null,null,null,null,null,null,null,null,null,null,null,null,null,null,null,null,null,null,null,null,null,null,null,null,null,null,null,null,null,null,null,null,null,null,null,null,null,null,null,null,null,null,null,null,null,null,null,null,null,null,"2023-01-01",0]
[null,16,null,-10,22,2,10,0,2,null,null,null,null,null,null,null,null,null,null,null,null,null,null,null,null,null,null,null,null,null,null,null,null,null,null,null,null,null,null,null,null,null,null,null,null,null,null,null,null,null,null,null,null,null,null,null,null,null,null,null,"2023-01-01",0]
[null,17,null,-10,60,2,10,0,2,null,null,null,null,null,null,null,null,null,null,null,null,null,null,null,null,null,null,null,null,null,null,null,null,null,null,null,null,null,null,null,null,null,null,null,null,null,null,null,null,null,null,null,null,null,null,null,null,null,null,null,"2023-01-01",{"$f":"+D61+G61+J61+M61+P61+S61+V61+Y61+AB61+AE61+AH61+AK61+AN61+AQ61+AT61+AW61+AZ61+BC61+BF61","v":0}]
[null,18,null,-10,33,2,10,0,2,null,null,null,null,null,null,null,null,null,null,null,null,null,null,null,null,null,null,null,null,null,null,null,null,null,null,null,null,null,null,null,null,null,null,null,null,null,null,null,null,null,null,null,null,null,null,null,null,null,null,null,"2023-01-01",0]
[null,19,null,10,13,2,-10,78,2,null,null,null,null,null,null,null,null,null,null,null,null,null,null,null,null,null,null,null,null,null,null,null,null,null,null,null,null,null,null,null,null,null,null,null,null,null,null,null,null,null,null,null,null,null,null,null,null,null,null,null,"2023-01-01",0]
[null,20,null,-10,50,2,10,45,2,null,null,null,null,null,null,null,null,null,null,null,null,null,null,null,null,null,null,null,null,null,null,null,null,null,null,null,null,null,null,null,null,null,null,null,null,null,null,null,null,null,null,null,null,null,null,null,null,null,null,null,"2023-01-02",0]
[null,21,null,-10,26,2,10,0,2,null,null,null,null,null,null,null,null,null,null,null,null,null,null,null,null,null,null,null,null,null,null,null,null,null,null,null,null,null,null,null,null,null,null,null,null,null,null,null,null,null,null,null,null,null,null,null,null,null,null,null,"2023-01-02",0]
[null,22,null,-10,21,2,10,14,2,null,null,null,null,null,null,null,null,null,null,null,null,null,null,null,null,null,null,null,null,null,null,null,null,null,null,null,null,null,null,null,null,null,null,null,null,null,null,null,null,null,null,null,null,null,null,null,null,null,null,null,"2023-01-04",0]
[null,23,null,-10,13,2,10,12,2,null,null,null,null,null,null,null,null,null,null,null,null,null,null,null,null,null,null,null,null,null,null,null,null,null,null,null,null,null,null,null,null,null,null,null,null,null,null,null,null,null,null,null,null,null,null,null,null,null,null,null,"2023-01-04",0]
[null,24,null,-10,101,2,10,39,2,null,null,null,null,null,null,null,null,null,null,null,null,null,null,null,null,null,null,null,null,null,null,null,null,null,null,null,null,null,null,null,null,null,null,null,null,null,null,null,null,null,null,null,null,null,null,null,null,null,null,null,"2023-01-04",0]
[null,25,null,10,9,2,-10,108,2,null,null,null,null,null,null,null,null,null,null,null,null,null,null,null,null,null,null,null,null,null,null,null,null,null,null,null,null,null,null,null,null,null,null,null,null,null,null,null,null,null,null,null,null,null,null,null,null,null,null,null,"2023-01-04",0]
[null,26,null,-10,7,2,10,2,2,null,null,null,null,null,null,null,null,null,null,null,null,null,null,null,null,null,null,null,null,null,null,null,null,null,null,null,null,null,null,null,null,null,null,null,null,null,null,null,null,null,null,null,null,null,null,null,null,null,null,null,"2023-01-04",0]
[null,27,null,10,0,2,-10,75,2,null,null,null,null,null,null,null,null,null,null,null,null,null,null,null,null,null,null,null,null,null,null,null,null,null,null,null,null,null,null,null,null,null,null,null,null,null,null,null,null,null,null,null,null,null,null,null,null,null,null,null,"2023-01-05",0]
[null,28,null,-10,23,2,10,14,2,null,null,null,null,null,null,null,null,null,null,null,null,null,null,null,null,null,null,null,null,null,null,null,null,null,null,null,null,null,null,null,null,null,null,null,null,null,null,null,null,null,null,null,null,null,null,null,null,null,null,null,"2023-01-05",0]
[null,29,null,10,0,2,-10,37,2,null,null,null,null,null,null,null,null,null,null,null,null,null,null,null,null,null,null,null,null,null,null,null,null,null,null,null,null,null,null,null,null,null,null,null,null,null,null,null,null,null,null,null,null,null,null,null,null,null,null,null,"2023-01-05",0]
[null,30,null,10,0,2,-10,28,2,null,null,null,null,null,null,null,null,null,null,null,null,null,null,null,null,null,null,null,null,null,null,null,null,null,null,null,null,null,null,null,null,null,null,null,null,null,null,null,null,null,null,null,null,null,null,null,null,null,null,null,"2023-01-05",0]
[null,31,null,10,12,2,-10,82,2,null,null,null,null,null,null,null,null,null,null,null,null,null,null,null,null,null,null,null,null,null,null,null,null,null,null,null,null,null,null,null,null,null,null,null,null,null,null,null,null,null,null,null,null,null,null,null,null,null,null,null,"2023-01-08",0]
[null,32,null,-10,7,2,10,0,2,null,null,null,null,null,null,null,null,null,null,null,null,null,null,null,null,null,null,null,null,null,null,null,null,null,null,null,null,null,null,null,null,null,null,null,null,null,null,null,null,null,null,null,null,null,null,null,null,null,null,null,"2023-01-08",0]
[null,33,null,10,3,2,-10,32,2,null,null,null,null,null,null,null,null,null,null,null,null,null,null,null,null,null,null,null,null,null,null,null,null,null,null,null,null,null,null,null,null,null,null,null,null,null,null,null,null,null,null,null,null,null,null,null,null,null,null,null,"2023-01-08",0]
[null,34,null,-10,66,2,10,0,2,null,null,null,null,null,null,null,null,null,null,null,null,null,null,null,null,null,null,null,null,null,null,null,null,null,null,null,null,null,null,null,null,null,null,null,null,null,null,null,null,null,null,null,null,null,null,null,null,null,null,null,"2023-01-08",0]
[null,35,null,10,18,2,-10,39,2,null,null,null,null,null,null,null,null,null,null,null,null,null,null,null,null,null,null,null,null,null,null,null,null,null,null,null,null,null,null,null,null,null,null,null,null,null,null,null,null,null,null,null,null,null,null,null,null,null,null,null,"2023-01-08",0]
[null,36,null,10,0,2,-10,28,2,null,null,null,null,null,null,null,null,null,null,null,null,null,null,null,null,null,null,null,null,null,null,null,null,null,null,null,null,null,null,null,null,null,null,null,null,null,null,null,null,null,null,null,null,null,null,null,null,null,null,null,"2023-01-08",0]
[null,37,null,10,60,3,-10,85,3,null,null,null,null,null,null,null,null,null,0,80,3,null,null,null,null,null,null,null,null,null,null,null,null,null,null,null,null,null,null,null,null,null,null,null,null,null,null,null,null,null,null,null,null,null,null,null,null,null,null,null,"2023-01-10",0]
[null,38,null,10,24,4,0,44,4,null,null,null,null,null,null,null,null,null,-10,104,4,null,null,null,null,null,null,null,null,null,null,null,null,null,null,null,null,null,null,null,null,null,null,null,null,null,null,null,null,null,null,null,null,null,null,null,null,null,null,null,"2023-01-10",{"$f":"+D82+G82+J82+M82+P82+S82+V82+Y82+AB82+AE82+AH82+AK82+AN82+AQ82+AT82+AW82+AZ82+BC82+BF82","v":0}]
[null,39,null,10,24,4,4,117,4,null,null,null,null,null,null,null,null,null,-4,119,4,-10,230,4,null,null,null,null,null,null,null,null,null,null,null,null,null,null,null,null,null,null,null,null,null,null,null,null,null,null,null,null,null,null,null,null,null,null,null,null,"2023-01-10",0]
[null,40,null,-4,21,1,10,0,1,null,null,null,null,null,null,null,null,null,4,20,0,-10,30,1,null,null,null,null,null,null,null,null,null,null,null,null,null,null,null,null,null,null,null,null,null,null,null,null,null,null,null,null,null,null,null,null,null,null,null,null,"2023-01-10",0]
[null,41,null,-4,48,3,10,0,3,null,null,null,null,null,null,null,null,null,null,null,null,null,null,null,4,37,3,-10,61,3,null,null,null,null,null,null,null,null,null,null,null,null,null,null,null,null,null,null,null,null,null,null,null,null,null,null,null,null,null,null,"2023-01-11",0]
[null,42,null,-10,40,2,10,9,2,null,null,null,null,null,null,null,null,null,null,null,null,null,null,null,null,null,null,null,null,null,null,null,null,null,null,null,null,null,null,null,null,null,null,null,null,null,null,null,null,null,null,null,null,null,null,null,null,null,null,null,"2023-01-15",0]
[null,43,null,-10,16,2,10,0,2,null,null,null,null,null,null,null,null,null,null,null,null,null,null,null,null,null,null,null,null,null,null,null,null,null,null,null,null,null,null,null,null,null,null,null,null,null,null,null,null,null,null,null,null,null,null,null,null,null,null,null,"2023-01-15",0]
[null,44,null,-10,46,2,10,15,2,null,null,null,null,null,null,null,null,null,null,null,null,null,null,null,null,null,null,null,null,null,null,null,null,null,null,null,null,null,null,null,null,null,null,null,null,null,null,null,null,null,null,null,null,null,null,null,null,null,null,null,"2023-01-15",0]
[null,45,null,10,2,2,-10,13,2,null,null,null,null,null,null,null,null,null,null,null,null,null,null,null,null,null,null,null,null,null,null,null,null,null,null,null,null,null,null,null,null,null,null,null,null,null,null,null,null,null,null,null,null,null,null,null,null,null,null,null,"2023-01-15",0]
[null,46,null,-10,20,2,10,0,2,null,null,null,null,null,null,null,null,null,null,null,null,null,null,null,null,null,null,null,null,null,null,null,null,null,null,null,null,null,null,null,null,null,null,null,null,null,null,null,null,null,null,null,null,null,null,null,null,null,null,null,"2023-01-15",0]
[null,47,null,10,3,2,-10,23,2,null,null,null,null,null,null,null,null,null,null,null,null,null,null,null,null,null,null,null,null,null,null,null,null,null,null,null,null,null,null,null,null,null,null,null,null,null,null,null,null,null,null,null,null,null,null,null,null,null,null,null,"2023-01-16",0]
[null,48,null,-10,34,2,10,2,2,null,null,null,null,null,null,null,null,null,null,null,null,null,null,null,null,null,null,null,null,null,null,null,null,null,null,null,null,null,null,null,null,null,null,null,null,null,null,null,null,null,null,null,null,null,null,null,null,null,null,null,"2023-01-16",0]
[null,49,null,10,0,2,-10,28,2,null,null,null,null,null,null,null,null,null,null,null,null,null,null,null,null,null,null,null,null,null,null,null,null,null,null,null,null,null,null,null,null,null,null,null,null,null,null,null,null,null,null,null,null,null,null,null,null,null,null,null,"2023-01-16",0]
[null,50,null,10,0,2,-10,11,2,null,null,null,null,null,null,null,null,null,null,null,null,null,null,null,null,null,null,null,null,null,null,null,null,null,null,null,null,null,null,null,null,null,null,null,null,null,null,null,null,null,null,null,null,null,null,null,null,null,null,null,"2023-01-16",0]
[null,51,null,-10,76,2,10,0,2,null,null,null,null,null,null,null,null,null,null,null,null,null,null,null,null,null,null,null,null,null,null,null,null,null,null,null,null,null,null,null,null,null,null,null,null,null,null,null,null,null,null,null,null,null,null,null,null,null,null,null,"2023-01-16",0]
[null,52,null,-10,12,2,10,13,2,null,null,null,null,null,null,null,null,null,null,null,null,null,null,null,null,null,null,null,null,null,null,null,null,null,null,null,null,null,null,null,null,null,null,null,null,null,null,null,null,null,null,null,null,null,null,null,null,null,null,null,"2023-01-16",0]
[null,53,null,-10,35,2,10,0,2,null,null,null,null,null,null,null,null,null,null,null,null,null,null,null,null,null,null,null,null,null,null,null,null,null,null,null,null,null,null,null,null,null,null,null,null,null,null,null,null,null,null,null,null,null,null,null,null,null,null,null,"2023-01-17",0]
[null,54,null,10,82,3,0,123,3,null,null,null,null,null,null,null,null,null,null,null,null,null,null,null,null,null,null,null,null,null,-10,124,3,null,null,null,null,null,null,null,null,null,null,null,null,null,null,null,null,null,null,null,null,null,null,null,null,null,null,null,"2023-01-17",0]
[null,55,null,-10,57,2,0,25,2,null,null,null,null,null,null,null,null,null,null,null,null,null,null,null,null,null,null,null,null,null,10,23,2,null,null,null,null,null,null,null,null,null,null,null,null,null,null,null,null,null,null,null,null,null,null,null,null,null,null,null,"2023-01-17",0]
[null,56,null,-10,52,2,{"$f":"+D100*-1","v":10},0,2,null,null,null,null,null,null,null,null,null,null,null,null,null,null,null,null,null,null,null,null,null,null,null,null,null,null,null,null,null,null,null,null,null,null,null,null,null,null,null,null,null,null,null,null,null,null,null,null,null,null,null,"2023-01-24",0]
[null,57,null,10,0,2,{"$f":"+D101*-1","v":-10},59,2,null,null,null,null,null,null,null,null,null,null,null,null,null,null,null,null,null,null,null,null,null,null,null,null,null,null,null,null,null,null,null,null,null,null,null,null,null,null,null,null,null,null,null,null,null,null,null,null,null,null,null,"2023-01-24",{"$f":"+D101+G101+J101+M101+P101+S101+V101+Y101+AB101+AE101+AH101+AK101+AN101+AQ101+AT101+AW101+AZ101+BC101+BF101","v":0}]
[null,58,null,-10,36,2,10,0,2,null,null,null,null,null,null,null,null,null,null,null,null,null,null,null,null,null,null,null,null,null,null,null,null,null,null,null,null,null,null,null,null,null,null,null,null,null,null,null,null,null,null,null,null,null,null,null,null,null,null,null,"2023-01-24",0]
[null,59,null,-10,39,2,10,0,2,null,null,null,null,null,null,null,null,null,null,null,null,null,null,null,null,null,null,null,null,null,null,null,null,null,null,null,null,null,null,null,null,null,null,null,null,null,null,null,null,null,null,null,null,null,null,null,null,null,null,null,"2023-01-24",0]
[null,60,null,-10,66,2,10,28,2,null,null,null,null,null,null,null,null,null,null,null,null,null,null,null,null,null,null,null,null,null,null,null,null,null,null,null,null,null,null,null,null,null,null,null,null,null,null,null,null,null,null,null,null,null,null,null,null,null,null,null,"2023-01-25",0]
[null,61,null,-10,101,2,10,0,2,null,null,null,null,null,null,null,null,null,null,null,null,null,null,null,null,null,null,null,null,null,null,null,null,null,null,null,null,null,null,null,null,null,null,null,null,null,null,null,null,null,null,null,null,null,null,null,null,null,null,null,"2023-01-25",0]
[null,62,null,-10,12,2,10,4,2,null,null,null,null,null,null,null,null,null,null,null,null,null,null,null,null,null,null,null,null,null,null,null,null,null,null,null,null,null,null,null,null,null,null,null,null,null,null,null,null,null,null,null,null,null,null,null,null,null,null,null,"2023-01-25",0]
[null,63,null,-10,19,2,10,0,2,null,null,null,null,null,null,null,null,null,null,null,null,null,null,null,null,null,null,null,null,null,null,null,null,null,null,null,null,null,null,null,null,null,null,null,null,null,null,null,null,null,null,null,null,null,null,null,null,null,null,null,"2023-01-25",0]
[null,64,null,-10,27,3,10,0,3,null,null,null,null,null,null,null,null,null,null,null,null,null,null,null,null,null,null,null,null,null,null,null,null,null,null,null,null,null,null,null,null,null,null,null,null,null,null,null,null,null,null,null,null,null,null,null,null,null,null,null,"2023-01-29",0]
[null,65,null,-10,26,2,10,21,2,null,null,null,null,null,null,null,null,null,null,null,null,null,null,null,null,null,null,null,null,null,null,null,null,0,23,2,null,null,null,null,null,null,null,null,null,null,null,null,null,null,null,null,null,null,null,null,null,null,null,null,"2023-01-29",0]
[null,66,null,10,0,2,-10,89,2,null,null,null,null,null,null,null,null,null,null,null,null,null,null,null,null,null,null,null,null,null,null,null,null,null,null,null,null,null,null,null,null,null,null,null,null,null,null,null,null,null,null,null,null,null,null,null,null,null,null,null,"2023-02-09",0]
[null,67,null,-10,15,2,10,14,2,null,null,null,null,null,null,null,null,null,null,null,null,null,null,null,null,null,null,null,null,null,null,null,null,null,null,null,null,null,null,null,null,null,null,null,null,null,null,null,null,null,null,null,null,null,null,null,null,null,null,null,"2023-02-09",0]
[null,68,null,10,62,8,-10,248,8,null,null,null,null,null,null,null,null,null,null,null,null,null,null,null,null,null,null,null,null,null,null,null,null,null,null,null,-4,198,8,4,137,8,null,null,null,null,null,null,null,null,null,null,null,null,null,null,null,null,null,null,"2023-02-12",0]
[null,69,null,10,12,5,4,42,5,null,null,null,null,null,null,null,null,null,null,null,null,null,null,null,null,null,null,null,null,null,null,null,null,null,null,null,-4,5,5,-10,104,5,null,null,null,null,null,null,null,null,null,null,null,null,null,null,null,null,null,null,"2023-02-18",0]
[null,70,null,10,81,6,-10,85,6,null,null,null,null,null,null,null,null,null,null,null,null,null,null,null,null,null,null,null,null,null,null,null,null,null,null,null,null,null,null,null,null,null,null,null,null,null,null,null,null,null,null,null,null,null,null,null,null,null,null,null,"2023-02-19",0]
[null,71,null,10,71,9,-10,185,9,null,null,null,null,null,null,null,null,null,null,null,null,null,null,null,null,null,null,null,null,null,null,null,null,null,null,null,null,null,null,null,null,null,0,101,9,null,null,null,null,null,null,null,null,null,null,null,null,null,null,null,"2023-02-21",0]
[null,72,null,-10,75,4,10,22,4,null,null,null,null,null,null,null,null,null,null,null,null,null,null,null,null,null,null,null,null,null,null,null,null,null,null,null,null,null,null,null,null,null,null,null,null,null,null,null,null,null,null,null,null,null,null,null,null,null,null,null,"2023-02-22",0]
[null,73,null,0,49,4,-10,74,4,null,null,null,null,null,null,null,null,null,null,null,null,null,null,null,null,null,null,null,null,null,null,null,null,10,25,4,null,null,null,null,null,null,null,null,null,null,null,null,null,null,null,null,null,null,null,null,null,null,null,null,"2023-03-01",0]
[null,74,null,10,40,5,-10,153,5,null,null,null,null,null,null,null,null,null,null,null,null,null,null,null,null,null,null,null,null,null,null,null,null,null,null,null,null,null,null,null,null,null,null,null,null,null,null,null,null,null,null,null,null,null,null,null,null,null,null,null,"2023-03-12",0]
[null,75,null,10,60,4,-10,78,4,null,null,null,null,null,null,null,null,null,null,null,null,null,null,null,null,null,null,null,null,null,null,null,null,null,null,null,null,null,null,null,null,null,null,null,null,null,null,null,null,null,null,null,null,null,null,null,null,null,null,null,"2023-03-15",0]
[null,76,null,-10,51,2,10,12,2,null,null,null,null,null,null,null,null,null,null,null,null,null,null,null,null,null,null,null,null,null,null,null,null,null,null,null,null,null,null,null,null,null,null,null,null,null,null,null,null,null,null,null,null,null,null,null,null,null,null,null,"2023-03-15",0]
[null,77,null,10,0,3,-10,78,4,null,null,null,null,null,null,null,null,null,null,null,null,null,null,null,null,null,null,null,null,null,null,null,null,0,24,2,null,null,null,null,null,null,null,null,null,null,null,null,null,null,null,null,null,null,null,null,null,null,null,null,"2023-03-15",0]
[null,78,null,10,0,3,-10,30,3,null,null,null,null,null,null,null,null,null,null,null,null,null,null,null,null,null,null,null,null,null,null,null,null,null,null,null,null,null,null,null,null,null,null,null,null,null,null,null,null,null,null,null,null,null,null,null,null,null,null,null,"2023-03-19",{"$f":"+D122+G122+J122+M122+P122+S122+V122+Y122+AB122+AE122+AH122+AK122+AN122+AQ122+AT122+AW122+AZ122+BC122+BF122","v":0}]
[null,79,null,10,25,6,-10,118,6,null,null,null,null,null,null,null,null,null,null,null,null,null,null,null,null,null,null,null,null,null,null,null,null,null,null,null,null,null,null,null,null,null,null,null,null,null,null,null,null,null,null,null,null,null,null,null,null,null,null,null,"2023-04-06",0]
[null,80,null,-10,87,3,10,36,3,null,null,null,null,null,null,null,null,null,null,null,null,null,null,null,null,null,null,null,null,null,null,null,null,null,null,null,null,null,null,null,null,null,null,null,null,null,null,null,null,null,null,null,null,null,null,null,null,null,null,null,"2023-04-18",0]
[null,81,null,10,0,2,0,38,2,null,null,null,null,null,null,null,null,null,null,null,null,null,null,null,null,null,null,null,null,null,null,null,null,-10,77,2,null,null,null,null,null,null,null,null,null,null,null,null,null,null,null,null,null,null,null,null,null,null,null,null,"2023-04-18",0]
[null,82,null,10,0,2,-10,41,2,null,null,null,null,null,null,null,null,null,null,null,null,null,null,null,null,null,null,null,null,null,null,null,null,null,null,null,null,null,null,null,null,null,null,null,null,null,null,null,null,null,null,null,null,null,null,null,null,null,null,null,"2023-04-23",0]
[null,83,null,10,12,2,-10,22,2,null,null,null,null,null,null,null,null,null,null,null,null,null,null,null,null,null,null,null,null,null,null,null,null,null,null,null,null,null,null,null,null,null,null,null,null,null,null,null,null,null,null,null,null,null,0,21,2,null,null,null,"2023-05-08",0]
[null,84,null,10,37,7,0,65,7,null,null,null,null,null,null,null,null,null,null,null,null,null,null,null,null,null,null,null,null,null,null,null,null,null,null,null,null,null,null,null,null,null,null,null,null,null,null,null,null,null,null,-10,86,7,null,null,null,null,null,null,"2023-05-09",0]
[null,85,null,10,15,7,-10,34,6,null,null,null,null,null,null,null,null,null,null,null,null,null,null,null,null,null,null,null,null,null,null,null,null,null,null,null,null,null,null,null,null,null,null,null,null,null,null,null,null,null,null,null,null,null,null,null,null,null,null,null,"2023-05-28",0]
[null,86,null,null,null,null,null,null,null,null,null,null,null,null,null,null,null,null,null,null,null,null,null,null,null,null,null,null,null,null,null,null,null,null,null,null,null,null,null,null,null,null,null,null,null,null,null,null,null,null,null,null,null,null,null,null,null,null,null,null,null,0]
[null,87,null,null,null,null,null,null,null,null,null,null,null,null,null,null,null,null,null,null,null,null,null,null,null,null,null,null,null,null,null,null,null,null,null,null,null,null,null,null,null,null,null,null,null,null,null,null,null,null,null,null,null,null,null,null,null,null,null,null,null,0]
[null,88,null,null,null,null,null,null,null,null,null,null,null,null,null,null,null,null,null,null,null,null,null,null,null,null,null,null,null,null,null,null,null,null,null,null,null,null,null,null,null,null,null,null,null,null,null,null,null,null,null,null,null,null,null,null,null,null,null,null,null,0]
[null,89,null,null,null,null,null,null,null,null,null,null,null,null,null,null,null,null,null,null,null,null,null,null,null,null,null,null,null,null,null,null,null,null,null,null,null,null,null,null,null,null,null,null,null,null,null,null,null,null,null,null,null,null,null,null,null,null,null,null,null,0]
[null,90,null,null,null,null,null,null,null,null,null,null,null,null,null,null,null,null,null,null,null,null,null,null,null,null,null,null,null,null,null,null,null,null,null,null,null,null,null,null,null,null,null,null,null,null,null,null,null,null,null,null,null,null,null,null,null,null,null,null,null,0]
[null,91]
[null,92]
[null,93]
[null,94]
[null,95]
[null,96]
[null,97]
[null,98]
[null,99]
[null,100]
[null,101]
[null,102]
[null,103]
[null,104]
[null,105]
[null,106]
[null,107]
[null,108]
[null,109]
[null,110]
[null,111]
[null,112]
[null,113]
[null,114]
[null,115]
[null,116]
[null,117]
[null,118]
[null,119]
[null,120]
[null,121]
[null,122]
[null,123]
[null,124]
[null,125]
[null,126]
[null,127]
[null,128]
[null,129]
[null,130]
[null,131]
[null,132]
[null,133]
[null,134]
[null,135]
[null,136]
[null,137]
[null,138]
[null,139]
[null,140]
[null,141]
[null,142]
[null,143]
[null,144]
[null,145]
[null,146]
[null,147]
[null,148]
[null,149]
[null,150]
[null,151]
[null,152]
[null,153]
[null,154]
[null,155]
[null,156]
[null,157]
[null,158]
[null,159]
[null,160]
[null,161]
[null,162]
[null,163]
[null,164]
[null,165]
[null,166]
[null,167]
[null,168]
[null,169]
[null,170]
[null,171]
[null,172]
[null,173]
[null,174]
[null,175]
[null,176]
[null,177]
[null,178]
[null,179]
[null,180]
[null,181]
[null,182]
[null,183]
[null,184]
[null,185]
[null,186]
[null,187]
[null,188]
[null,189]
[null,190]
[null,191]
[null,192]
[null,193]
[null,194]
[null,195]
[null,196]
[null,197]
[null,198]
[null,199]
[null,200]
[null,201]
[null,202]
[null,203]
[null,204]
[null,205]
[null,206]
[null,207,null,null,null,null,null,null,null,null,null,null,null,null,null,null,null,null,null,null,null,null,null,null,null,null,null,null,null,null,null,null,null,null,null,null,null,null,null,null,null,null,null,null,null,null,null,null,null,null,null,null,null,null,null,null,null,null,null,null,null,0]